bitfinex/quotes_BTCUSD_20251209
["timestamp","ask_amount","ask_price","bid_price","bid_amount"]
[1765251847592,0.05351998,90416.0,90414.0,0.22120468]
[1765251847593,0.04246,90416.0,90414.0,0.22120468]
[1765251848741,0.04246,90416.0,90414.0,0.22320468]
[1765251849130,0.04246,90416.0,90414.0,0.22420468]
[1765251851291,0.1215,90416.0,90414.0,0.22420468]
[1765251851995,0.0455,90415.0,90414.0,0.22420468]
[1765251852227,0.1242,90415.0,90414.0,0.003]
[1765251852459,0.12382,90415.0,90414.0,0.003]
[1765251853761,0.12382,90415.0,90414.0,0.002]
[1765251853965,0.12382,90415.0,90414.0,0.003]
[1765251854117,0.12382,90415.0,90414.0,0.001]
[1765251854325,0.12382,90415.0,90414.0,0.003]
[1765251855901,0.14057068,90415.0,90414.0,0.003]
[1765251859506,0.36177291,90415.0,90414.0,0.003]
[1765251859694,0.34502223,90415.0,90414.0,0.003]
[1765251860499,0.12382,90415.0,90414.0,0.003]
[1765251860653,0.14057068,90415.0,90414.0,0.003]
[1765251861061,0.36177291,90415.0,90414.0,0.003]
[1765251861267,0.34502223,90415.0,90414.0,0.003]
[1765251864853,0.34209124,90415.0,90414.0,0.003]
[1765251866114,0.36408724,90415.0,90414.0,0.003]
[1765251866702,0.14288501,90415.0,90414.0,0.003]
[1765251867046,0.12088901,90415.0,90414.0,0.003]
[1765251867627,0.34209124,90415.0,90414.0,0.003]
[1765251868143,0.36408724,90415.0,90414.0,0.003]
[1765251873245,0.12088901,90415.0,90414.0,0.003]
[1765251874053,0.14288501,90415.0,90414.0,0.003]
[1765251874260,0.12088901,90415.0,90414.0,0.003]
[1765251874476,0.14288501,90415.0,90414.0,0.003]
[1765251874678,0.12088901,90415.0,90414.0,0.003]
[1765251876600,0.14288501,90415.0,90414.0,0.003]
[1765251877049,0.12088901,90415.0,90414.0,0.003]
[1765251878025,0.15963569,90415.0,90414.0,0.003]
[1765251878266,0.13763969,90415.0,90414.0,0.003]
[1765251878483,0.15963569,90415.0,90414.0,0.003]
[1765251878701,0.12088901,90415.0,90414.0,0.003]
[1765251878845,0.15963569,90415.0,90414.0,0.003]
[1765251883604,0.13801969,90415.0,90414.0,0.003]
[1765251883933,0.16001569,90415.0,90414.0,0.003]
[1765251885668,0.14801787,90415.0,90414.0,0.003]
[1765251886080,0.02674886,90415.0,90414.0,0.003]
[1765251886282,0.00999818,90423.0,90420.0,0.0110595]
[1765251886597,0.00999818,90423.0,90419.0,0.01105962]
[1765251886598,0.01748,90422.0,90419.0,0.01105962]
[1765251886904,0.01105986,90417.0,90414.0,0.00461287]
[1765251887193,0.00028,90415.0,90414.0,0.00161287]
[1765251887558,0.08338,90415.0,90414.0,0.00161287]
[1765251888297,0.08338,90415.0,90414.0,0.00261287]
[1765251889013,0.08338,90415.0,90414.0,0.00361287]
[1765251889170,0.08338,90415.0,90414.0,0.00261287]
[1765251889552,0.08338,90415.0,90414.0,0.00461287]
[1765251891892,0.08338,90415.0,90414.0,0.22581755]
[1765251894247,0.02757,90418.0,90417.0,0.22119734]
[1765251894544,0.11067,90418.0,90417.0,0.22119734]
[1765251894726,0.16207,90418.0,90417.0,0.22119734]
[1765251895642,0.16207,90418.0,90417.0,0.22219734]
[1765251898343,0.02757,90418.0,90417.0,0.22219734]
[1765251899221,0.16207,90418.0,90417.0,0.22219734]
[1765251902805,0.16207,90418.0,90417.0,0.001]
[1765251903009,0.40526089,90418.0,90417.0,0.001]
[1765251904042,0.16207,90418.0,90417.0,0.001]
[1765251908417,0.184066,90418.0,90417.0,0.001]
[1765251912475,0.184066,90418.0,90417.0,0.22219734]
[1765251912651,0.184066,90418.0,90417.0,0.001]
[1765251912833,0.40526089,90418.0,90417.0,0.001]
[1765251913534,0.184066,90418.0,90417.0,0.001]
[1765251913908,0.16207,90418.0,90417.0,0.001]
[1765251918681,0.184066,90418.0,90417.0,0.001]
[1765251919915,0.16207,90418.0,90417.0,0.001]
[1765251920331,0.07897,90418.0,90417.0,0.001]
[1765251920658,0.01106023,90427.0,90417.0,0.001]
[1765251920659,0.03667,90435.0,90430.0,0.22116554]
[1765251920865,0.00011583,90431.0,90430.0,0.22116554]
[1765251921811,0.00011583,90431.0,90430.0,0.22416554]
[1765251922012,0.00011583,90431.0,90430.0,0.003]
[1765251922013,0.16419583,90431.0,90430.0,0.003]
[1765251922217,0.18619183,90431.0,90430.0,0.003]
[1765251922454,0.20294251,90431.0,90430.0,0.003]
[1765251923093,0.20294251,90431.0,90430.0,0.001]
[1765251924275,0.01105839,90429.0,90425.0,0.01105888]
[1765251924437,0.01748,90428.0,90425.0,0.01105888]
[1765251924639,0.01748,90428.0,90426.0,0.22117532]
[1765251924844,0.01748,90428.0,90427.0,0.17206567]
[1765251925082,0.01748,90428.0,90427.0,0.09565567]
[1765251925396,0.01748,90428.0,90427.0,0.04510567]
[1765251926142,0.00011583,90431.0,90430.0,0.22116554]
[1765251926384,0.00011583,90431.0,90430.0,0.54416554]
[1765251927653,0.00011583,90431.0,90430.0,0.54516554]
[1765251928099,0.00011583,90431.0,90430.0,0.54716554]
[1765251930111,0.00011583,90431.0,90430.0,0.59771554]
[1765251930409,0.00011583,90431.0,90430.0,0.54716554]
[1765251931380,0.00011583,90431.0,90430.0,0.58037656]
[1765251932590,0.12752583,90431.0,90430.0,0.35921102]
[1765251933589,0.12752583,90431.0,90430.0,0.58037656]
[1765251933993,0.12752583,90431.0,90430.0,0.35921102]
[1765251934939,0.05259583,90431.0,90430.0,0.35921102]
[1765251935345,0.00011583,90431.0,90430.0,0.35921102]
[1765251936123,0.12752583,90431.0,90430.0,0.35921102]
[1765251936828,0.14427651,90431.0,90430.0,0.35921102]
[1765251937670,0.12752583,90431.0,90430.0,0.35921102]
[1765251938623,0.12752583,90431.0,90430.0,0.58037656]
[1765251940289,0.14325583,90431.0,90430.0,0.35921102]
[1765251947674,0.06832583,90431.0,90430.0,0.35921102]
[1765251948098,0.01584583,90431.0,90430.0,0.35921102]
[1765251953233,0.01584583,90431.0,90430.0,0.41119389]
[1765251953234,0.00011583,90431.0,90430.0,0.41119389]
[1765251953488,0.00011583,90431.0,90430.0,0.48776389]
[1765251954296,0.00011583,90431.0,90430.0,1.92312689]
[1765251954638,0.00011583,90431.0,90430.0,1.90013089]
[1765251954840,0.00011583,90431.0,90430.0,0.97215489]
[1765251955088,0.00011583,90431.0,90430.0,0.97415489]
[1765251955292,0.00011583,90431.0,90430.0,0.97815489]
[1765251955500,0.00011583,90431.0,90430.0,0.97215489]
[1765251955855,0.00211583,90431.0,90430.0,0.97215489]
[1765251958738,0.00211583,90431.0,90430.0,0.83592689]
[1765251958945,0.00211583,90431.0,90430.0,0.91249689]
[1765251961271,0.00211583,90431.0,90430.0,0.35782389]
[1765251961472,0.03918583,90431.0,90430.0,0.35782389]
[1765251961709,0.38812892,90431.0,90430.0,0.35621102]
[1765251962554,0.01105852,90428.0,90425.0,0.01105888]
[1765251962770,0.01105852,90428.0,90423.0,0.01105913]
[1765251962771,0.01378,90425.0,90423.0,0.01105913]
[1765251962930,0.27258021,90424.0,90422.0,0.323]
[1765251963142,0.01105998,90416.0,90413.0,0.01106035]
[1765251963446,0.0110606,90411.0,90408.0,0.02764663]
[1765251963656,0.0385,90409.0,90403.0,0.01106157]
[1765251963804,0.04576,90407.0,90406.0,0.01658567]
[1765251964210,0.11983,90407.0,90406.0,0.01658567]
[1765251964392,0.11983,90407.0,90405.0,0.22122472]
[1765251964597,0.0377,90412.0,90411.0,0.22121202]
[1765251965035,0.15753,90412.0,90411.0,0.22121202]
[1765251965252,0.0377,90412.0,90411.0,0.22121202]
[1765251967122,0.01105962,90419.0,90411.0,0.22121202]
[1765251967123,0.02105682,90427.0,90411.0,0.22282489]
[1765251967322,0.05455,90426.0,90422.0,0.23224271]
[1765251967860,0.08785,90425.0,90422.0,0.23224271]
[1765251968368,0.08985,90425.0,90422.0,0.23224271]
[1765251968551,0.08785,90425.0,90424.0,0.22118021]
[1765251968751,0.08885,90425.0,90422.0,0.23224271]
[1765251968950,0.09085,90425.0,90422.0,0.23224271]
[1765251969749,0.09085,90425.0,90424.0,0.22118021]
[1765251969974,0.09085,90425.0,90422.0,0.01105925]
[1765251969975,0.04576,90423.0,90422.0,0.01105925]
[1765251970137,0.05681913,90423.0,90420.0,0.00099999]
[1765251970338,0.0110606,90411.0,90402.0,0.0110617]
[1765251970578,0.0110606,90411.0,90405.0,0.01658567]
[1765251970798,0.0377,90410.0,90409.0,0.323]
[1765251970940,0.0377,90410.0,90407.0,0.01106109]
[1765251971140,0.04576,90408.0,90407.0,0.01106109]
[1765251971552,0.11983,90408.0,90407.0,0.33406109]
[1765251973010,0.11983,90408.0,90407.0,0.33706109]
[1765251973589,0.11983,90408.0,90407.0,0.33806109]
[1765251973788,0.04576,90408.0,90407.0,0.33806109]
[1765251974488,0.0377,90410.0,90408.0,0.22121936]
[1765251975117,0.11654,90409.0,90408.0,0.22121936]
[1765251975515,0.11654,90409.0,90407.0,0.2362828]
[1765251975724,0.11654,90409.0,90407.0,0.2332828]
[1765251976082,0.0377,90410.0,90409.0,0.22121691]
[1765251977538,0.0377,90410.0,90409.0,0.22221691]
[1765251978157,0.03417,90417.0,90416.0,0.22119978]
[1765251978540,0.15071,90417.0,90416.0,0.22119978]
[1765251978903,0.15071,90417.0,90414.0,0.2322625]
[1765251979253,0.04678,90415.0,90414.0,0.01106023]
[1765251979651,0.11654,90415.0,90414.0,0.01106023]
[1765251981050,0.11654,90415.0,90414.0,0.001]
[1765251982028,0.138536,90415.0,90414.0,0.001]
[1765251983374,0.22120957,90412.0,90410.0,0.00099999]
[1765251983587,0.0578406,90411.0,90408.0,0.01106096]
[1765251983764,0.30203486,90411.0,90407.0,0.01267396]
[1765251983967,0.04678,90408.0,90407.0,0.01267396]
[1765251984338,0.11654,90408.0,90407.0,0.01267396]
[1765251984794,0.11654,90408.0,90407.0,0.55689576]
[1765251984989,0.04678,90408.0,90407.0,0.55689576]
[1765251985429,0.04678,90408.0,90407.0,0.55989576]
[1765251986362,0.04678,90408.0,90407.0,0.56089576]
[1765251986764,0.04678,90408.0,90407.0,0.33967396]
[1765251987113,0.11654,90408.0,90407.0,0.33967396]
[1765251987487,0.33775936,90408.0,90407.0,0.32861287]
[1765251987667,0.35975536,90408.0,90407.0,0.32861287]
[1765251987954,0.34775754,90408.0,90407.0,0.004]
[1765251988604,0.34775754,90408.0,90407.0,0.003]
[1765251989634,0.22123649,90401.0,90400.0,0.00099999]
[1765251989823,0.086256,90401.0,90400.0,0.00099999]
[1765251990039,0.13402,90401.0,90400.0,0.00099999]
[1765251990408,0.13402,90401.0,90398.0,0.23230504]
[1765251990813,0.13408402,90401.0,90398.0,0.23230504]
[1765251991222,0.06432402,90401.0,90400.0,0.002]
[1765251991403,0.06432402,90401.0,90398.0,0.23230504]
[1765251991603,0.04678,90399.0,90398.0,0.23230504]
[1765251992001,0.01754402,90401.0,90400.0,0.22123893]
[1765251992243,0.08730402,90401.0,90400.0,0.22123893]
[1765251992597,0.13408402,90401.0,90399.0,0.22123895]
[1765251992718,0.06976,90400.0,90399.0,0.22123895]
[1765251992933,0.11654,90400.0,90399.0,0.22123895]
[1765251993630,0.11654,90400.0,90382.0,0.01106414]
[1765251993631,0.01106341,90388.0,90382.0,0.01106414]
[1765251993832,0.01106231,90397.0,90376.0,0.23236209]
[1765251993833,0.00999818,90381.0,90376.0,0.23236209]
[1765251994220,0.011065,90375.0,90370.0,0.00099999]
[1765251994417,0.01374,90371.0,90370.0,0.323]
[1765251994542,0.06052,90371.0,90366.0,0.3340661]
[1765251994894,0.06052,90371.0,90368.0,0.323]
[1765251995055,0.29289637,90371.0,90368.0,0.323]
[1765251995451,0.22131483,90369.0,90368.0,0.323]
[1765251995771,0.23239142,90365.0,90363.0,0.218729]
[1765251995974,0.01106623,90365.0,90363.0,0.218729]
[1765251996160,0.01106623,90365.0,90360.0,0.33406684]
[1765251996161,0.38310342,90364.0,90360.0,0.33406684]
[1765251996506,0.04678,90363.0,90360.0,0.01106684]
[1765251996905,0.03417,90364.0,90361.0,0.02765239]
[1765251997312,0.003,90364.0,90363.0,0.54432952]
[1765251997513,0.004,90364.0,90363.0,0.323]
[1765251997720,0.001,90364.0,90363.0,0.323]
[1765251998083,0.001,90364.0,90363.0,0.54432952]
[1765251998468,0.001,90364.0,90363.0,0.54594239]
[1765251998718,0.01380399,90371.0,90370.0,0.22131238]
[1765251999833,0.13034399,90371.0,90370.0,0.22131238]
[1765252000040,0.13034399,90371.0,90370.0,0.22431238]
[1765252000385,0.13034399,90371.0,90370.0,0.22531238]
[1765252005015,0.01380399,90371.0,90370.0,0.22531238]
[1765252005218,6.399e-05,90371.0,90370.0,0.22692525]
[1765252006149,6.399e-05,90371.0,90370.0,0.59612525]
[1765252006344,6.399e-05,90371.0,90370.0,0.92084925]
[1765252009013,6.399e-05,90371.0,90370.0,0.94284525]
[1765252009664,6.399e-05,90371.0,90370.0,0.97390198]
[1765252009866,6.399e-05,90371.0,90370.0,0.94284525]
[1765252015474,6.399e-05,90371.0,90370.0,0.98337224]
[1765252016507,6.399e-05,90371.0,90370.0,1.00536824]
[1765252017389,6.399e-05,90371.0,90370.0,1.00136824]
[1765252017592,6.399e-05,90371.0,90370.0,1.03242497]
[1765252017794,0.00106399,90371.0,90370.0,1.03242497]
[1765252018593,0.00106399,90371.0,90370.0,1.00136824]
[1765252018934,0.00506399,90371.0,90370.0,1.00136824]
[1765252022752,0.00506399,90371.0,90370.0,0.97937224]
[1765252022979,0.00506399,90371.0,90370.0,0.99685224]
[1765252024302,0.00506399,90371.0,90370.0,1.0079159]
[1765252024471,0.00506399,90371.0,90370.0,0.80870591]
[1765252024659,0.00506399,90371.0,90370.0,0.77998591]
[1765252024859,0.00506399,90371.0,90370.0,0.72230591]
[1765252025056,0.00506399,90371.0,90370.0,0.70856891]
[1765252025577,0.00506399,90371.0,90370.0,0.33567653]
[1765252025778,0.11931399,90371.0,90370.0,0.54592525]
[1765252026146,0.04846399,90371.0,90370.0,0.54592525]
[1765252026761,0.00506399,90371.0,90370.0,0.54592525]
[1765252033304,0.00506399,90371.0,90370.0,0.32461287]
[1765252033435,0.14678399,90371.0,90370.0,0.32461287]
[1765252033640,0.0110661,90366.0,90363.0,0.323]
[1765252033841,0.0110661,90366.0,90363.0,0.01106647]
[1765252034051,0.0434,90364.0,90362.0,0.33958567]
[1765252034269,0.0434,90363.0,90362.0,0.33958567]
[1765252034450,0.0434,90363.0,90362.0,0.01658567]
[1765252034668,0.0434,90363.0,90362.0,0.33958567]
[1765252035022,0.06502,90365.0,90363.0,0.22132952]
[1765252035233,0.01106586,90368.0,90365.0,0.23239013]
[1765252035422,0.01106574,90369.0,90365.0,0.23239013]
[1765252035717,0.06502,90367.0,90365.0,0.23239013]
[1765252036470,0.0434,90366.0,90365.0,0.23239013]
[1765252036823,0.22130725,90373.0,90368.0,0.01106586]
[1765252037137,0.03336399,90371.0,90368.0,0.23238076]
[1765252037265,0.03336399,90371.0,90368.0,0.01106586]
[1765252037266,0.06502,90370.0,90368.0,0.01106586]
[1765252037683,0.06502,90370.0,90369.0,0.22131483]
[1765252037888,0.06502,90370.0,90368.0,0.01106586]
[1765252038389,0.0434,90369.0,90368.0,0.01506586]
[1765252038594,0.0434,90369.0,90368.0,0.01106586]
[1765252038791,0.10842,90369.0,90368.0,0.01106586]
[1765252038995,0.10842,90369.0,90368.0,0.01606586]
[1765252039192,0.10842,90369.0,90368.0,0.01206586]
[1765252039390,0.0434,90369.0,90368.0,0.01206586]
[1765252039618,6.399e-05,90371.0,90370.0,0.323]
[1765252039928,6.399e-05,90371.0,90370.0,0.36699287]
[1765252040136,6.399e-05,90371.0,90370.0,0.43659287]
[1765252040911,6.399e-05,90371.0,90370.0,0.36699287]
[1765252041355,6.399e-05,90371.0,90370.0,0.44059287]
[1765252041918,6.399e-05,90371.0,90370.0,0.44159287]
[1765252042121,6.399e-05,90371.0,90370.0,0.37199287]
[1765252042757,6.399e-05,90371.0,90370.0,0.32961287]
[1765252048282,6.399e-05,90371.0,90370.0,0.44159287]
[1765252048805,6.399e-05,90371.0,90370.0,0.91459087]
[1765252048972,6.399e-05,90371.0,90370.0,0.93658687]
[1765252049389,6.399e-05,90371.0,90370.0,0.99910986]
[1765252050107,6.399e-05,90371.0,90370.0,1.02833581]
[1765252050505,0.00206399,90371.0,90370.0,1.02833581]
[1765252050912,0.00206399,90371.0,90370.0,1.02733581]
[1765252051264,0.00306399,90371.0,90370.0,1.02733581]
[1765252057074,0.00306399,90371.0,90370.0,0.35783882]
[1765252057281,0.00306399,90371.0,90370.0,0.03483882]
[1765252057450,0.00306399,90371.0,90370.0,0.35783882]
[1765252057649,0.00306399,90371.0,90370.0,0.32461287]
[1765252057878,0.00306399,90371.0,90370.0,0.00161287]
[1765252058106,0.11148399,90371.0,90370.0,0.00161287]
[1765252058291,0.11148399,90371.0,90370.0,0.32461287]
[1765252058971,0.11048399,90371.0,90370.0,0.32461287]
[1765252059150,0.00206399,90371.0,90370.0,0.32461287]
[1765252059438,6.399e-05,90371.0,90370.0,0.32461287]
[1765252059640,6.399e-05,90371.0,90370.0,0.32561287]
[1765252060354,6.399e-05,90371.0,90370.0,0.32661287]
[1765252060573,0.10848399,90371.0,90370.0,0.32661287]
[1765252062534,0.10848399,90371.0,90370.0,0.22331238]
[1765252062715,0.10848399,90371.0,90370.0,0.325]
[1765252062887,0.32979392,90371.0,90370.0,0.325]
[1765252063089,0.32979392,90371.0,90370.0,0.002]
[1765252063511,0.35178992,90371.0,90370.0,0.002]
[1765252063721,0.13047999,90371.0,90370.0,0.002]
[1765252064104,0.10848399,90371.0,90370.0,0.002]
[1765252065515,0.32979392,90371.0,90370.0,0.002]
[1765252066352,0.10848399,90371.0,90370.0,0.002]
[1765252067584,0.32979392,90371.0,90370.0,0.002]
[1765252069079,0.10848399,90371.0,90370.0,0.002]
[1765252071708,0.11848217,90371.0,90370.0,0.002]
[1765252071908,0.13523285,90371.0,90370.0,0.002]
[1765252072555,0.13523285,90371.0,90370.0,0.001]
[1765252072913,0.03306235,90364.0,90361.0,0.01106672]
[1765252073156,0.05755,90362.0,90361.0,0.01106672]
[1765252073298,0.05755,90362.0,90360.0,0.01106684]
[1765252073639,0.11422,90361.0,90360.0,0.01106684]
[1765252073986,6.399e-05,90371.0,90368.0,0.22131535]
[1765252074198,6.399e-05,90371.0,90370.0,2.17796825]
[1765252074419,6.399e-05,90371.0,90370.0,2.05103525]
[1765252074640,6.399e-05,90371.0,90370.0,2.12042525]
[1765252075013,6.399e-05,90371.0,90370.0,2.18294824]
[1765252075926,0.00406399,90371.0,90370.0,1.71833424]
[1765252076253,0.00406399,90371.0,90370.0,1.61224324]
[1765252076951,0.00506399,90371.0,90370.0,1.61224324]
[1765252077154,0.00506399,90371.0,90370.0,1.59133424]
[1765252079590,0.00506399,90371.0,90370.0,0.85539724]
[1765252080429,0.00506399,90371.0,90370.0,0.68175125]
[1765252080608,0.00506399,90371.0,90370.0,1.09231125]
[1765252082822,0.00506399,90371.0,90370.0,1.15483424]
[1765252083169,0.00506399,90371.0,90370.0,1.21005763]
[1765252084438,0.00506399,90371.0,90370.0,1.17683024]
[1765252084639,6.399e-05,90371.0,90370.0,1.17683024]
[1765252084956,0.00106399,90371.0,90370.0,1.17683024]
[1765252085341,6.399e-05,90371.0,90370.0,1.17683024]
[1765252085793,6.399e-05,90371.0,90370.0,1.17783024]
[1765252085953,6.399e-05,90371.0,90370.0,1.15583424]
[1765252086167,6.399e-05,90371.0,90370.0,0.88012824]
[1765252086950,6.399e-05,90371.0,90370.0,0.91963638]
[1765252087598,6.399e-05,90371.0,90370.0,0.87912824]
[1765252087778,0.00206399,90371.0,90370.0,0.87912824]
[1765252089269,0.00206399,90371.0,90370.0,0.86164824]
[1765252089477,0.00206399,90371.0,90370.0,0.87912824]
[1765252093090,0.00206399,90371.0,90370.0,0.70396525]
[1765252093901,0.00206399,90371.0,90370.0,0.68648525]
[1765252094701,0.00206399,90371.0,90370.0,0.56778525]
[1765252097461,0.10571399,90371.0,90370.0,0.32461287]
[1765252097712,0.10571399,90371.0,90368.0,0.23238072]
[1765252097924,0.06229,90370.0,90367.0,0.23238541]
[1765252098134,0.06229,90370.0,90369.0,0.54431483]
[1765252098494,0.10365,90370.0,90369.0,0.54431483]
[1765252098798,0.00206399,90371.0,90369.0,0.54431483]
[1765252099511,6.399e-05,90371.0,90369.0,0.54431483]
[1765252100121,6.399e-05,90371.0,90370.0,0.12779123]
[1765252101432,6.399e-05,90371.0,90370.0,0.13179123]
[1765252101937,6.399e-05,90371.0,90370.0,0.06939123]
[1765252104803,6.399e-05,90371.0,90370.0,0.3940041]
[1765252105001,6.399e-05,90371.0,90370.0,0.43527287]
[1765252107252,6.399e-05,90371.0,90370.0,0.47274991]
[1765252107619,6.399e-05,90371.0,90370.0,0.43527287]
[1765252108132,6.399e-05,90371.0,90370.0,0.47274991]
[1765252111557,6.399e-05,90371.0,90370.0,1.43062191]
[1765252112959,6.399e-05,90371.0,90370.0,1.36753891]
[1765252114130,6.399e-05,90371.0,90370.0,1.26803391]
[1765252115131,6.399e-05,90371.0,90370.0,1.27005365]
[1765252115331,6.399e-05,90371.0,90370.0,1.30753069]
[1765252115815,6.399e-05,90371.0,90370.0,1.27005365]
[1765252117454,6.399e-05,90371.0,90370.0,1.30753069]
[1765252118420,6.399e-05,90371.0,90370.0,1.26803391]
[1765252122573,6.399e-05,90371.0,90370.0,0.61645287]
[1765252125271,6.399e-05,90371.0,90370.0,0.55250287]
[1765252127038,6.399e-05,90371.0,90370.0,0.61645287]
[1765252127994,6.399e-05,90371.0,90370.0,0.55250287]
[1765252128556,6.399e-05,90371.0,90370.0,0.50363587]
[1765252128811,6.399e-05,90371.0,90370.0,0.46137587]
[1765252129007,6.399e-05,90371.0,90370.0,0.50096308]
[1765252130240,6.399e-05,90371.0,90370.0,0.60695308]
[1765252131540,6.399e-05,90371.0,90370.0,0.56736587]
[1765252139184,6.399e-05,90371.0,90370.0,0.50341587]
[1765252140153,6.399e-05,90371.0,90370.0,0.62659771]
[1765252140396,6.399e-05,90371.0,90370.0,0.64859371]
[1765252140602,6.399e-05,90371.0,90370.0,0.58936187]
[1765252140810,6.399e-05,90371.0,90370.0,0.62683891]
[1765252141219,6.399e-05,90371.0,90370.0,0.58936187]
[1765252141417,6.399e-05,90371.0,90370.0,0.62683891]
[1765252142368,6.399e-05,90371.0,90370.0,0.58936187]
[1765252142518,6.399e-05,90371.0,90370.0,0.56736587]
[1765252144752,6.399e-05,90371.0,90370.0,0.60059455]
[1765252149529,6.399e-05,90371.0,90370.0,0.53664455]
[1765252149988,6.399e-05,90371.0,90370.0,0.59879455]
[1765252152473,6.399e-05,90371.0,90370.0,0.64626977]
[1765252153339,6.399e-05,90371.0,90370.0,0.70879276]
[1765252153523,6.399e-05,90371.0,90370.0,0.7855046]
[1765252153669,6.399e-05,90371.0,90370.0,0.75912809]
[1765252153868,6.399e-05,90371.0,90370.0,0.79942107]
[1765252154067,6.399e-05,90371.0,90370.0,0.77112591]
[1765252154496,6.399e-05,90371.0,90370.0,0.85403953]
[1765252154696,6.399e-05,90371.0,90370.0,0.93288205]
[1765252154897,6.399e-05,90371.0,90370.0,0.85403953]
[1765252155097,6.399e-05,90371.0,90370.0,0.88233469]
[1765252155297,6.399e-05,90371.0,90370.0,0.85003953]
[1765252155710,6.399e-05,90371.0,90370.0,0.85103953]
[1765252156117,6.399e-05,90371.0,90370.0,0.87933469]
[1765252156513,3.59e-06,90371.0,90370.0,0.87933469]
[1765252156788,3.59e-06,90371.0,90370.0,0.8181842]
[1765252157380,3.59e-06,90371.0,90370.0,0.78070716]
[1765252157559,3.59e-06,90371.0,90370.0,0.8181842]
[1765252159032,3.59e-06,90371.0,90370.0,0.9637842]
[1765252159931,3.59e-06,90371.0,90370.0,0.9463042]
[1765252160131,3.59e-06,90371.0,90370.0,0.9637842]
[1765252161342,3.59e-06,90371.0,90370.0,0.9463042]
[1765252161539,3.59e-06,90371.0,90370.0,0.9637842]
[1765252164069,3.59e-06,90371.0,90370.0,0.9463042]
[1765252164370,3.59e-06,90371.0,90370.0,0.9637842]
[1765252167464,3.59e-06,90371.0,90370.0,1.04280121]
[1765252169455,3.59e-06,90371.0,90370.0,0.92630716]
[1765252169655,3.59e-06,90371.0,90370.0,0.90882716]
[1765252169918,3.59e-06,90371.0,90370.0,0.92630716]
[1765252171278,3.59e-06,90371.0,90370.0,0.9637842]
[1765252172283,3.59e-06,90371.0,90370.0,0.9463042]
[1765252172495,3.59e-06,90371.0,90370.0,0.9637842]
[1765252172797,3.59e-06,90371.0,90370.0,0.99663953]
[1765252173171,3.59e-06,90371.0,90370.0,1.07565654]
[1765252173625,3.59e-06,90371.0,90370.0,1.05817654]
[1765252173833,3.59e-06,90371.0,90370.0,1.07565654]
[1765252174929,3.59e-06,90371.0,90370.0,1.05817654]
[1765252175100,3.59e-06,90371.0,90370.0,0.9637842]
[1765252177452,3.59e-06,90371.0,90370.0,1.04280121]
[1765252177810,3.59e-06,90371.0,90370.0,0.9637842]
[1765252180701,3.59e-06,90371.0,90370.0,0.9463042]
[1765252180917,3.59e-06,90371.0,90370.0,0.75787455]
[1765252181154,3.59e-06,90371.0,90370.0,0.34727555]
[1765252181370,0.13193359,90371.0,90370.0,0.03584155]
[1765252182000,0.13193359,90371.0,90370.0,0.35884155]
[1765252182195,0.13193359,90371.0,90370.0,0.03584155]
[1765252182408,0.01106574,90369.0,90362.0,0.01106659]
[1765252182602,0.03802,90363.0,90361.0,0.01106672]
[1765252182780,0.01106623,90365.0,90361.0,0.01106672]
[1765252182781,0.0671,90362.0,90361.0,0.33406672]
[1765252182983,0.0671,90362.0,90361.0,0.01106672]
[1765252183184,0.1257,90362.0,90361.0,0.23240114]
[1765252183916,0.0586,90370.0,90369.0,0.22131483]
[1765252184404,0.09662,90370.0,90369.0,0.22131483]
[1765252184623,3.59e-06,90371.0,90369.0,0.25863483]
[1765252184784,3.59e-06,90371.0,90370.0,0.38245123]
[1765252184966,3.59e-06,90371.0,90370.0,1.69989487]
[1765252185174,3.59e-06,90371.0,90370.0,1.73737191]
[1765252185370,3.59e-06,90371.0,90370.0,1.86766606]
[1765252185597,3.59e-06,90371.0,90370.0,1.98289089]
[1765252185910,3.59e-06,90371.0,90370.0,2.09201451]
[1765252186110,3.59e-06,90371.0,90370.0,2.01288089]
[1765252186534,3.59e-06,90371.0,90370.0,2.01388089]
[1765252186666,0.02908,90410.0,90409.0,0.22121691]
[1765252186867,0.0291441,90410.0,90409.0,0.22121691]
[1765252187085,0.0671641,90410.0,90409.0,0.22121691]
[1765252187284,6.41e-05,90410.0,90409.0,0.22121691]
[1765252187486,0.0380841,90410.0,90409.0,0.22121691]
[1765252188093,0.0966841,90410.0,90409.0,0.22121691]
[1765252188499,6.41e-05,90410.0,90409.0,0.22121691]
[1765252188757,0.0390841,90410.0,90409.0,0.22121691]
[1765252188959,0.0976841,90410.0,90409.0,0.22121691]
[1765252189172,0.1006841,90410.0,90409.0,0.22121691]
[1765252189448,0.0420841,90410.0,90409.0,0.22121691]
[1765252189976,0.1006841,90410.0,90409.0,0.22121691]
[1765252199977,0.0420841,90410.0,90409.0,0.22121691]
[1765252200339,0.1006841,90410.0,90409.0,0.22121691]
[1765252200746,0.0040641,90410.0,90409.0,0.22121691]
[1765252204237,0.0040641,90410.0,90409.0,0.24662691]
[1765252204449,0.0040641,90410.0,90409.0,0.60709274]
[1765252205103,0.0040641,90410.0,90409.0,0.64030979]
[1765252205302,0.0040641,90410.0,90409.0,0.68045266]
[1765252205478,0.0040641,90410.0,90409.0,0.70735561]
[1765252206173,0.00010899,90410.0,90409.0,0.70735561]
[1765252206752,0.00010899,90410.0,90409.0,0.66988978]
[1765252206952,0.00010899,90410.0,90409.0,1.56608078]
[1765252207173,0.00010899,90410.0,90409.0,1.60354661]
[1765252207376,0.00010899,90410.0,90409.0,1.62554261]
[1765252207592,0.00010899,90410.0,90409.0,1.67606778]
[1765252207739,0.00010899,90410.0,90409.0,1.6660696]
[1765252207946,0.01105888,90425.0,90422.0,0.01105925]
[1765252208134,6.407e-05,90425.0,90423.0,0.22118266]
[1765252208333,6.407e-05,90425.0,90422.0,0.01105925]
[1765252208565,6.407e-05,90425.0,90423.0,0.03746583]
[1765252208788,6.407e-05,90425.0,90422.0,0.01105925]
[1765252209306,0.01112295,90425.0,90422.0,0.01105925]
[1765252209467,0.23224394,90423.0,90420.0,0.35149999]
[1765252209669,0.23224394,90423.0,90422.0,0.01658567]
[1765252210108,0.01112295,90425.0,90422.0,0.01658567]
[1765252210311,0.23230291,90425.0,90422.0,0.01658567]
[1765252210511,6.407e-05,90425.0,90422.0,0.01658567]
[1765252210736,6.407e-05,90425.0,90423.0,0.03746583]
[1765252210952,6.407e-05,90425.0,90422.0,0.02764492]
[1765252211156,6.407e-05,90425.0,90424.0,0.54418021]
[1765252212230,6.407e-05,90425.0,90424.0,0.68029604]
[1765252212429,6.407e-05,90425.0,90424.0,0.64283021]
[1765252213072,6.407e-05,90425.0,90424.0,0.42165]
[1765252213272,0.12386407,90425.0,90424.0,0.323]
[1765252213432,0.34504184,90425.0,90424.0,0.323]
[1765252213842,0.34504184,90425.0,90409.0,0.06652018]
[1765252213843,0.01106133,90405.0,90402.0,0.03949731]
[1765252214083,0.01106133,90405.0,90397.0,0.05924597]